bitfinex-derivatives/quotes_SOLF0:USTF0_20250819
["timestamp","ask_amount","ask_price","bid_price","bid_amount"]
[1755565047932,0.03869528,184.81,184.79,2.92101635]
[1755565048131,0.03869528,184.81,184.79,5.86101635]
[1755565048429,2.88,184.84,184.79,5.86101635]
[1755565048731,0.03976026,184.82,184.79,5.86101635]
[1755565052336,2.91976026,184.82,184.75,2.92101635]
[1755565052737,2.88,184.82,184.75,2.92101635]
[1755565053228,2.88,184.79,184.72,2.94]
[1755565054130,0.03476498,184.77,184.74,2.94]
[1755565054833,0.03476498,184.77,184.71,2.92101635]
[1755565056134,2.88,184.75,184.71,2.92101635]
[1755565056325,2.88,184.76,184.71,2.92101635]
[1755565056831,2.88,184.74,184.71,2.92101635]
[1755565057636,2.88,184.74,184.68,2.92101635]
[1755565057833,0.03476498,184.77,184.71,2.92101635]
[1755565058142,2.88,184.81,184.71,5.86101635]
[1755565058326,2.88,184.81,184.71,2.92101635]
[1755565058327,0.03471955,184.76,184.71,2.92101635]
[1755565058624,0.03471955,184.76,184.72,2.94]
[1755565058825,0.03471955,184.76,184.73,2.94]
[1755565059228,0.03471955,184.76,184.74,2.92101635]
[1755565059433,0.03471955,184.76,184.74,5.86101635]
[1755565059734,2.88,184.81,184.74,5.86101635]
[1755565059933,0.0351116,184.77,184.74,2.92101635]
[1755565060133,0.0351116,184.77,184.76,2.94]
[1755565062339,2.88,184.85,184.76,2.94]
[1755565062530,2.88,184.85,184.79,2.92101635]
[1755565063635,0.03506664,184.84,184.79,2.92101635]
[1755565063835,0.03506664,184.84,184.8,2.94]
[1755565064234,0.03506664,184.84,184.79,8.32981635]
[1755565064434,0.03506664,184.84,184.81,2.94]
[1755565064938,0.03506664,184.84,184.82,2.92101635]
[1755565065137,0.03506664,184.84,184.82,5.86101635]
[1755565065531,139.9,184.92,184.83,2.94]
[1755565065730,2.88,184.91,184.87,2.92101635]
[1755565065935,2.88,184.9,184.87,2.92101635]
[1755565066642,137.02,184.92,184.87,5.86101635]
[1755565066939,139.9,184.92,184.87,5.86101635]
[1755565067435,366.5,184.96,184.89,2.94]
[1755565068739,366.5,184.96,184.91,0.03441244]
[1755565068934,2.88,184.94,184.91,0.03441244]
[1755565069741,363.62,184.96,184.91,0.03441244]
[1755565069938,2.88,184.95,184.91,0.03441244]
[1755565070140,363.62,184.96,184.91,0.03441244]
[1755565070337,2.88,184.95,184.91,0.03441244]
[1755565070741,2.88,184.95,184.84,2.94]
[1755565071337,2.88,184.95,184.79,2.94]
[1755565071540,379.89,184.96,184.81,2.92101635]
[1755565071541,2.88,184.93,184.81,2.92101635]
[1755565071746,2.88,184.91,184.79,5.86101635]
[1755565072240,0.04021923,184.87,184.79,5.86101635]
[1755565072447,0.04021923,184.87,184.79,2.94]
[1755565072746,0.04021923,184.87,184.8,2.92101635]
[1755565073357,0.04021923,184.87,184.79,5.86101635]
[1755565074448,0.04021923,184.87,184.79,2.94]
[1755565075640,0.04021923,184.87,184.82,5.4078]
[1755565075834,0.04021923,184.87,184.84,3.12]
[1755565076546,0.04021923,184.87,184.81,4.87701754]
[1755565076845,0.04021923,184.87,184.81,7.99701754]
[1755565077939,0.04021923,184.87,184.81,3.12]
[1755565078339,3.14,184.86,184.78,4.87701754]
[1755565080242,0.04021923,184.87,184.79,3.12]
[1755565081336,0.04021923,184.87,184.8,5.4084]
[1755565081751,0.04021923,184.87,184.79,3.12]
[1755565082352,3.14,184.86,184.79,3.12]
[1755565082550,3.14,184.86,184.76,3.12]
[1755565083053,3.14,184.86,184.74,4.87701754]
[1755565083256,3.14,184.84,184.74,4.87701754]
[1755565084553,3.14,184.84,184.75,3.12]
[1755565085952,3.14,184.87,184.75,3.12]
[1755565086346,3.14,184.87,184.76,5.4096]
[1755565086546,3.14,184.87,184.75,3.12]
[1755565087954,3.14,184.87,184.76,5.4095]
[1755565088754,3.14,184.87,184.75,8.5299]
[1755565089152,3.14,184.87,184.75,3.12]
[1755565089355,3.14,184.87,184.78,3.12]
[1755565089749,136.88,184.92,184.79,5.4088]
[1755565089955,3.14,184.9,184.8,3.12]
[1755565090359,3.14,184.9,184.83,3.12]
[1755565096364,3.14,184.9,184.83,6.04498285]
[1755565101565,136.88,184.92,184.83,6.04498285]
[1755565101769,4.14314269,184.91,184.83,6.04498285]
[1755565101964,3.14,184.91,184.83,6.04498285]
[1755565104272,3.14,184.91,184.8,5.93498285]
[1755565104464,3.0,184.89,184.77,5.93498285]
[1755565104667,3.0,184.87,184.77,11.34438285]
[1755565104967,3.0,184.91,184.83,5.93498285]
[1755565105871,3.0,184.86,184.72,3.01]
[1755565106069,3.0,184.84,184.72,3.01]
[1755565106266,3.0,184.82,184.72,3.01]
[1755565106568,3.0,184.82,184.75,3.01]
[1755565106868,4.15094907,184.81,184.72,3.01]
[1755565107169,3.0,184.82,184.72,3.01]
[1755565107170,3.0,184.82,184.75,3.01]
[1755565109264,3.0,184.82,184.74,2.92498285]
[1755565109265,136.66,184.85,184.78,3.01]
[1755565109767,139.66,184.85,184.74,5.93498285]
[1755565109972,4.14880579,184.84,184.74,5.93498285]
[1755565110270,139.66,184.85,184.74,5.93498285]
[1755565110468,139.66,184.85,184.77,8.4193]
[1755565110970,139.66,184.85,184.77,3.01]
[1755565111662,136.66,184.85,184.77,5.93498285]
[1755565112873,136.66,184.85,184.8,2.92498285]
[1755565113072,136.66,184.85,184.81,3.01]
[1755565113574,139.66,184.85,184.81,3.01]
[1755565117572,136.66,184.85,184.81,8.4181]
[1755565117776,136.66,184.85,184.83,3.01]
[1755565118480,136.64,184.91,184.81,5.4081]
[1755565118774,3.0,184.89,184.81,5.4081]
[1755565122187,4.15114344,184.88,184.8,5.93498285]
[1755565122380,7.15133817,184.87,184.8,5.93498285]
[1755565122587,3.0,184.87,184.8,5.93498285]
[1755565123288,3.0,184.87,184.8,11.34328285]
[1755565123688,3.0,184.87,184.8,5.93498285]
[1755565127286,3.0,184.85,184.75,3.01]
[1755565127588,3.0,184.83,184.75,5.93498285]
[1755565127804,3.0,184.83,184.76,5.4097]
[1755565128098,3.0,184.83,184.75,5.93498285]
[1755565128294,0.03828046,184.81,184.75,5.93498285]
[1755565128494,0.03828046,184.81,184.75,11.34488285]
[1755565129694,0.03828046,184.81,184.77,3.01]
[1755565129889,3.03828046,184.81,184.77,3.01]
[1755565130091,3.03828046,184.81,184.78,3.01]
[1755565130291,0.03828046,184.81,184.76,5.4097]
[1755565130493,0.03828046,184.81,184.79,3.01]
[1755565130693,0.03828046,184.81,184.76,5.4097]
[1755565131201,0.03828046,184.81,184.78,3.01]
[1755565131897,3.0,184.91,184.79,3.01]
[1755565132097,6.83723366,184.9,184.82,2.92498285]
[1755565132294,2.92,184.88,184.79,2.92498285]
[1755565132490,2.92,184.86,184.79,2.92498285]
[1755565133104,2.92,184.86,184.79,6.01498285]
[1755565133298,161.80715976,184.93,184.81,0.03561663]
[1755565133494,2.92,184.85,184.81,3.12561663]
[1755565133701,2.92,184.85,184.81,3.09]
[1755565134098,2.92,184.85,184.81,3.12897761]
[1755565136099,6.05217691,184.92,184.81,3.12897761]
[1755565136299,2.92,184.84,184.81,0.03897761]
[1755565136699,2.92,184.84,184.79,2.92498285]
[1755565136899,2.92,184.84,184.8,3.09]
[1755565137100,2.92,184.88,184.81,3.12430923]
[1755565137304,2.92,184.86,184.82,3.09]
[1755565138310,2.92,184.86,184.83,3.09]
[1755565139709,2.92,184.86,184.82,0.03517656]
[1755565140101,142.65217691,184.93,184.82,0.03517656]
[1755565140409,2.92,184.9,184.82,0.03517656]
[1755565140706,2.92,184.88,184.82,0.03517656]
[1755565141210,2.92,184.86,184.82,0.03517656]
[1755565141403,2.92,184.84,184.82,0.03517656]
[1755565141599,2.92,184.83,184.82,0.03517656]
[1755565141801,7.0802992,184.83,184.82,0.03517656]
[1755565142002,2.92,184.83,184.82,0.03517656]
[1755565143306,2.92,184.85,184.82,0.03517656]
[1755565143507,2.92,184.85,184.82,3.12517656]
[1755565145216,2.92,184.91,184.82,3.12517656]
[1755565145421,6.83993517,184.9,184.82,3.12517656]
[1755565145608,2.92,184.91,184.82,3.12517656]
[1755565145609,4.15934428,184.89,184.82,3.12517656]
[1755565145909,2.92,184.91,184.82,3.12517656]
[1755565146119,6.83981539,184.9,184.82,3.12517656]
[1755565146318,2.92,184.88,184.82,3.12517656]
[1755565146509,4.1595998,184.87,184.82,0.03517656]
[1755565146810,6.05217691,184.92,184.83,3.09]
[1755565147007,6.84036672,184.91,184.88,3.09]
[1755565147312,11.95448958,184.96,184.92,3.09]
[1755565147313,2.92,184.96,184.92,3.09]
[1755565147818,2.92,184.99,184.93,6.01498285]
[1755565148614,2.92,184.99,184.93,11.41938285]
[1755565149209,2.92,184.99,184.93,6.01498285]
[1755565152714,2.92,184.99,184.92,0.03765913]
[1755565153710,2.92,185.0,184.92,0.03765913]
[1755565155228,2.92,184.98,184.92,0.03765913]
[1755565158714,0.94124011,184.97,184.92,0.03765913]
[1755565158921,2.92,184.96,184.92,0.03765913]
[1755565159317,2.92,184.94,184.85,3.09]
[1755565159524,2.92,184.92,184.8,2.92498285]
[1755565159818,2.92498285,184.89,184.78,3.09]
[1755565160019,2.92,184.88,184.78,3.09]
[1755565160216,2.92498285,184.92,184.8,3.09]
[1755565160417,2.92498285,184.92,184.82,2.92498285]
[1755565160418,2.92,184.92,184.82,2.92498285]
[1755565160622,2.92,184.92,184.83,8.4977]
[1755565161022,137.68,184.93,184.85,2.92498285]
[1755565161221,0.03439935,184.89,184.85,2.92498285]
[1755565161420,0.03439935,184.89,184.88,3.09]
[1755565162829,0.03439935,184.89,184.85,6.04498285]
[1755565163025,0.03439935,184.89,184.86,3.12]
[1755565164025,2.95439935,184.89,184.78,3.12]
[1755565164330,5.8793822,184.89,184.78,3.12]
[1755565164628,5.84498285,184.89,184.78,3.12]
[1755565165037,0.03425443,184.85,184.78,3.12]
[1755565165722,0.03425443,184.85,184.78,8.5291]
[1755565166330,0.03425443,184.85,184.8,3.12]
[1755565166725,2.92,184.89,184.81,8.5282]
[1755565166919,2.92,184.89,184.81,3.12]
[1755565167328,0.0343566,184.87,184.81,3.12]
[1755565167827,0.0343566,184.87,184.85,3.12]
[1755565168023,0.0343566,184.87,184.86,3.12]
[1755565168220,0.0343566,184.87,184.76,4.45871679]
[1755565168221,2.92498285,184.92,184.77,3.12]
[1755565168423,4.09233567,184.91,184.8,3.12]
[1755565168633,2.92,184.9,184.8,3.12]
[1755565169831,2.92,184.9,184.8,8.5286]
[1755565170032,2.92,184.9,184.8,3.12]
[1755565170628,0.0345859,184.87,184.8,3.12]
[1755565171123,2.9545859,184.87,184.8,3.12]
[1755565172837,2.9545859,184.87,184.8,8.5285]
[1755565175434,2.9545859,184.87,184.81,5.4083]
[1755565175820,0.0345859,184.87,184.82,3.12]
[1755565176030,0.0345859,184.87,184.84,3.12]
[1755565176228,0.0345859,184.87,184.85,3.12]
[1755565176427,0.0345859,184.87,184.82,3.12]
[1755565176636,0.0345859,184.87,184.83,3.12]
[1755565177136,2.9545859,184.87,184.8,2.92498285]
[1755565177435,2.9545859,184.87,184.79,3.12]
[1755565177637,2.9545859,184.87,184.8,5.4084]
[1755565178035,2.9545859,184.87,184.79,6.04498285]
[1755565178533,0.0345859,184.87,184.82,3.12]
[1755565178730,0.0345859,184.87,184.83,3.12]
[1755565179434,2.9545859,184.87,184.83,3.12]
[1755565179933,0.0345859,184.87,184.84,3.12]
[1755565180128,0.0345859,184.87,184.85,3.12]
[1755565180532,2.92,184.92,184.85,3.12]
[1755565180734,2.92,184.92,184.84,5.4073]
[1755565181832,2.92,184.92,184.85,5.4071]
[1755565182040,2.92,184.92,184.83,3.12]
[1755565184334,2.92,184.92,184.79,3.12]
[1755565184542,2.92,184.9,184.79,3.12]
[1755565185043,2.92,184.89,184.79,8.5286]
[1755565185740,2.92,184.89,184.8,5.4084]
[1755565185941,2.92,184.89,184.79,3.12]
[1755565186142,0.03480825,184.86,184.79,3.12]
[1755565187145,0.03480825,184.86,184.82,3.12]
[1755565187345,0.03480825,184.86,184.83,3.12]
[1755565187646,143.52498285,184.93,184.83,3.12]
[1755565187838,4.08704778,184.92,184.83,3.12]
[1755565188142,143.52498285,184.93,184.83,8.5276]
[1755565188337,4.08780244,184.92,184.83,8.5276]
[1755565188538,140.6,184.93,184.85,3.12]
[1755565189044,0.04166311,184.91,184.85,3.12]
[1755565189245,0.04166311,184.91,184.87,3.12]
[1755565189539,0.04166311,184.91,184.86,5.4068]
[1755565189540,0.04166311,184.91,184.88,3.12]
[1755565191141,0.04166311,184.91,184.85,3.12]
[1755565191346,0.04166311,184.91,184.88,3.12]
[1755565191547,0.04166311,184.91,184.87,2.92498285]
[1755565191840,0.04166311,184.91,184.9,3.12]
[1755565192238,0.04166311,184.91,184.9,8.5257]
[1755565192646,0.04166311,184.91,184.9,11.45068285]
[1755565193148,137.18,184.98,184.93,2.86]
[1755565193348,137.18,184.98,184.9,2.92498285]
[1755565193541,0.16128992,185.04,184.98,2.86]
[1755565193750,0.16128992,185.04,185.0,2.86]
[1755565194047,0.16128992,185.04,184.92,2.92498285]
[1755565194048,0.16128992,185.04,185.02,2.86]
[1755565194451,139.52071851,185.1,185.03,2.86]
[1755565194751,138.58,185.1,185.06,2.86]
[1755565195451,138.58,185.1,185.06,2.89832967]
[1755565195452,141.59,185.1,185.06,2.89832967]
[1755565197450,3.01,185.09,185.06,0.03832967]
[1755565197948,3.01,185.07,185.06,0.03832967]
[1755565200245,6.47498285,185.07,184.93,2.86]
[1755565200445,5.93498285,185.07,184.93,2.86]
[1755565200750,3.01,185.07,184.96,2.86]
[1755565201050,3.01,185.07,184.99,2.86]
[1755565202049,3.01,185.07,184.99,8.2631]
[1755565202247,3.01,185.07,184.99,2.86]
[1755565202451,3.01,185.09,184.99,2.86]
[1755565202648,3.01,185.09,185.0,5.4027]
[1755565202849,3.01,185.09,184.92,2.86]
[1755565203057,3.01,185.09,184.97,11.18838285]
[1755565203350,3.01,185.09,184.97,8.2634]
[1755565203742,3.01,185.09,184.98,5.4033]
[1755565203944,0.94062952,185.1,185.0,2.86]
[1755565204146,0.94062952,185.1,185.04,2.86]
[1755565204349,3.01,185.13,185.06,2.92498285]
[1755565204548,3.01,185.13,185.04,2.86]
[1755565204760,3.01,185.13,185.05,2.92498285]
[1755565205250,3.01,185.14,185.07,2.86]
[1755565205456,0.03698896,185.1,185.07,2.86]
[1755565206351,0.03698896,185.1,185.03,2.86]
[1755565206543,3.04698896,185.1,185.03,2.86]
[1755565206946,3.01,185.1,185.03,2.86]
[1755565207546,0.03768928,185.08,185.0,2.92498285]
[1755565207950,0.03768928,185.08,185.01,2.86]
[1755565208148,0.03768928,185.08,185.04,8.2616]
[1755565208354,0.03768928,185.08,185.07,2.86]
[1755565208557,3.01,185.14,185.07,2.86]
[1755565208954,0.03997011,185.09,185.02,4.86361342]
[1755565209154,3.04997011,185.09,184.98,2.86]
[1755565209454,3.04997011,185.09,184.94,7.72361342]
[1755565209656,3.01,185.09,184.94,7.72361342]
[1755565209861,0.03469468,185.03,184.87,2.86]
[1755565210067,3.01,185.01,184.87,2.86]
[1755565210247,270.52361342,185.02,184.83,2.86]
[1755565210248,3.01,184.97,184.83,2.86]
[1755565210448,3.01,184.93,184.83,2.86]
[1755565210754,3.01,184.91,184.79,2.86]
[1755565210958,144.71,184.95,184.83,2.86]
[1755565211157,141.68,184.94,184.83,2.86]
[1755565211861,0.03916306,184.9,184.86,2.86]
[1755565212054,0.03916306,184.9,184.83,2.86]
[1755565212249,0.03916306,184.9,184.89,5.406]
[1755565212455,0.03916306,184.9,184.83,2.86]
[1755565212853,0.03916306,184.9,184.85,5.4069]
[1755565213053,3.04916306,184.9,184.82,7.72361342]
[1755565213458,3.04916306,184.9,184.79,4.86361342]
[1755565213761,3.04916306,184.9,184.69,6.09581724]
[1755565213762,3.04916306,184.9,184.75,7.72361342]
[1755565213968,3.01,184.9,184.75,7.72361342]
[1755565214463,3.01,184.9,184.78,5.4091]
[1755565214670,3.01,184.9,184.75,7.72361342]
[1755565214857,3.01,184.9,184.76,2.86]
[1755565215164,0.03924391,184.86,184.8,5.4086]
[1755565215365,0.03924391,184.86,184.76,2.86]
[1755565215552,0.03924391,184.86,184.79,4.86361342]
[1755565215753,0.03924391,184.86,184.8,2.86]
[1755565216162,3.04924391,184.86,184.8,2.86]
[1755565216667,3.04924391,184.86,184.8,8.2685]
[1755565216964,3.04924391,184.86,184.75,2.86]
[1755565217364,3.01,184.86,184.75,2.86]
[1755565218268,3.01,184.86,184.77,5.4094]
[1755565218466,3.01,184.92,184.78,2.86]
[1755565218668,3.01,184.93,184.84,5.4073]
[1755565219169,3.01,184.93,184.82,2.86]
[1755565219961,0.03633604,184.89,184.82,2.86]
[1755565220156,0.03633604,184.89,184.85,4.86361342]
[1755565220362,3.01,184.98,184.9,5.4054]
[1755565220557,3.01,184.98,184.89,4.86361342]
[1755565220756,143.16,185.01,184.9,2.86]
[1755565221566,143.16,185.01,184.94,0.03920647]
[1755565223259,2.96,185.0,184.94,0.03920647]
[1755565235069,143.16,185.01,184.94,2.93920647]
[1755565235373,146.12,185.01,184.94,2.93920647]
[1755565236071,2.96,185.0,184.94,0.03920647]
[1755565238572,2.96,184.98,184.94,0.03920647]
[1755565238771,143.16,185.01,184.94,0.03920647]
[1755565238973,2.96,184.95,184.94,0.03920647]
[1755565239272,147.38,184.95,184.94,0.03920647]
[1755565239676,147.38,184.95,184.85,2.9]
[1755565239677,147.92,184.95,184.85,2.9]
[1755565239877,147.38,184.95,184.85,2.9]
[1755565241673,144.42,184.95,184.85,2.9]
[1755565241869,2.96,184.93,184.8,2.9]
[1755565242472,4.12554329,184.92,184.8,2.9]
[1755565242674,2.96,184.93,184.8,2.9]
[1755565242870,2.96,184.91,184.8,2.9]
[1755565244778,7.82361342,184.91,184.8,2.9]
[1755565244977,2.96,184.89,184.8,2.9]
[1755565245881,2.96,184.89,184.76,2.9]
[1755565246085,4.12478349,184.88,184.76,2.9]
[1755565246386,2.96,184.86,184.76,2.9]
[1755565249377,2.96,184.86,184.7,2.9]
[1755565249378,7.82361342,184.86,184.7,2.9]
[1755565249583,2.96,184.84,184.7,2.9]
[1755565249784,4.11925365,184.83,184.7,2.9]
[1755565249983,2.96,184.82,184.7,2.9]
[1755565250585,4.12062096,184.81,184.7,2.9]
[1755565250785,2.96,184.8,184.7,2.9]
[1755565250993,143.36,184.79,184.7,2.9]
[1755565251191,2.96,184.78,184.66,2.9]
[1755565251494,0.03916505,184.76,184.66,7.76361342]
[1755565251695,143.3,184.77,184.67,2.9]
[1755565251894,143.36,184.88,184.75,2.9]
[1755565252294,143.36,184.88,184.74,4.86361342]
[1755565252295,143.36,184.88,184.76,5.4097]
[1755565252499,143.36,184.88,184.77,3.0]
[1755565253092,143.36,184.88,184.81,0.03456606]
[1755565253295,7.22332776,184.87,184.81,0.03456606]
[1755565253490,3.1,184.87,184.81,0.03456606]
[1755565259002,143.36,184.88,184.81,0.03456606]
[1755565260209,3.1,184.87,184.81,0.03456606]
[1755565260798,143.36,184.88,184.81,0.03456606]
[1755565260999,143.38,184.87,184.81,0.03456606]
[1755565264206,3.1,184.85,184.81,0.03456606]
[1755565264608,3.1,184.84,184.81,0.03456606]
[1755565265015,143.38,184.87,184.81,0.03456606]
[1755565265411,143.38,184.87,184.82,3.0]
[1755565265612,3.1,185.01,184.82,3.0]
[1755565265819,9.03448958,185.02,184.81,0.03456606]
[1755565265820,6.74546905,184.98,184.85,3.0]
[1755565266115,143.52,184.97,184.9,3.0]
[1755565266504,143.52,184.97,184.92,5.4051]
[1755565266707,143.52,184.97,184.9,0.03444895]
[1755565267014,363.58,185.02,184.96,3.0]
[1755565267215,143.46,185.01,184.98,3.0]
[1755565267411,143.46,185.01,184.94,3.0]
[1755565267811,143.46,185.01,184.98,0.04027539]
[1755565268015,143.46,185.01,184.98,3.04027539]
[1755565268411,143.46,185.01,184.98,0.04027539]
[1755565271319,3.1,185.0,184.98,0.04027539]
[1755565271516,3.1,184.99,184.98,0.04027539]
[1755565272125,3.1,184.99,184.9,3.0]
[1755565272519,3.1,184.99,184.83,108.45529359]
[1755565272520,3.1,184.99,184.84,3.0]
[1755565273019,3.1,184.97,184.84,3.0]
[1755565273224,3.1,184.95,184.84,3.0]
[1755565273524,0.04109187,184.93,184.84,3.0]
[1755565273918,0.04109187,184.93,184.88,3.0]
[1755565274122,0.04109187,184.93,184.83,103.59168017]
[1755565274421,0.04109187,184.93,184.84,3.0]
[1755565275023,0.04109187,184.93,184.87,5.4065]
[1755565275318,0.04109187,184.93,184.87,3.0]
[1755565275714,0.04109187,184.93,184.89,3.0]
[1755565275913,506.94,184.99,184.91,3.0]
[1755565276227,506.94,184.99,184.92,5.4049]
[1755565276423,506.94,184.99,184.91,3.0]
[1755565277121,506.94,184.99,184.93,0.03796096]
[1755565277322,506.94,184.99,184.95,3.0]
[1755565277526,143.52,184.99,184.95,3.0]
[1755565277728,143.52,184.99,184.94,3.0]
[1755565277934,143.52,184.99,184.95,3.0]
[1755565278922,146.36,185.04,184.95,3.0]
[1755565279318,143.26,185.04,184.95,3.0]
[1755565279833,143.26,185.04,184.98,3.03435965]
[1755565281729,0.94036263,185.15,185.0,4.86361342]
[1755565281923,0.94036263,185.15,185.01,3.0]
[1755565281924,143.92,185.14,185.01,3.0]
[1755565282228,143.92,185.14,185.05,8.3112]
[1755565282421,143.92,185.14,185.06,0.04127538]
[1755565282828,143.92,185.14,185.07,5.4006]
[1755565283128,143.92,185.14,185.08,2.91]
[1755565283927,143.92,185.14,185.08,8.3104]
[1755565284731,143.92,185.14,185.1,2.91]
[1755565285448,143.92,185.14,185.1,2.95082887]
[1755565287434,143.92,185.14,185.11,2.91]
[1755565288434,143.92,185.14,185.1,0.04082887]
[1755565288636,143.92,185.14,185.11,2.91]
[1755565290029,143.92,185.14,185.1,0.04082887]
[1755565290030,3.53,185.13,184.93,4.42247879]
[1755565290234,2.99,185.06,184.92,2.91]
[1755565290433,126.99,185.05,184.92,2.91]
[1755565290738,143.32,185.06,184.92,2.91]
[1755565290739,2.99,185.04,184.92,2.91]
[1755565290936,2.99,185.04,184.92,7.77361342]
[1755565291137,2.99,185.04,184.93,2.91]
[1755565291835,2.99,185.04,184.89,2.91]
[1755565292329,2.99,185.04,184.91,4.86361342]
[1755565292330,0.03691404,184.98,184.91,4.86361342]
[1755565292531,0.03691404,184.98,184.92,2.91]
[1755565296338,0.03691404,184.98,184.81,143.04]
[1755565296339,0.03691404,184.98,184.88,2.91]
[1755565296541,0.03691404,184.98,184.84,2.91]
[1755565296542,2.99,184.97,184.84,2.91]
[1755565297128,4.86361342,185.01,184.84,2.91]
[1755565297129,3.0241909,184.92,184.84,2.91]
[1755565300340,3.0241909,184.92,184.8,2.91]
[1755565300731,2.99,184.92,184.8,2.91]
[1755565301041,0.03947813,184.88,184.82,2.91]
[1755565301237,0.03947813,184.88,184.83,7.69509894]
[1755565301436,0.03947813,184.88,184.84,2.91]
[1755565301639,0.03947813,184.88,184.87,2.91]
[1755565302031,2.99,185.01,184.89,5.4059]
[1755565302238,2.99,185.01,184.9,2.91]
[1755565303136,2.99,185.01,184.91,5.4052]
[1755565303440,2.99,185.05,184.94,2.94578456]
[1755565303652,2.99,185.05,184.96,5.4037]
[1755565303851,2.99,185.05,184.93,7.69509894]
[1755565304038,2.99,185.05,184.92,2.91]
[1755565304346,2.99,185.05,184.99,0.03761274]
[1755565305247,2.99,185.05,184.88,10.60509894]
[1755565305545,2.99,185.03,184.88,2.91]
[1755565305949,2.99,185.03,184.89,2.91]
[1755565306339,2.99,185.03,184.93,5.4046]
[1755565306642,0.04102007,184.98,184.88,7.69509894]
[1755565306848,0.04102007,184.98,184.94,5.4043]
[1755565307141,0.04102007,184.98,184.97,2.91]
[1755565308345,2.99,185.08,184.97,3.45]
[1755565308650,2.99,185.08,184.97,2.91]
[1755565309345,2.99,185.08,184.93,10.60509894]
[1755565309546,2.99,185.06,185.01,0.03790381]
[1755565309741,363.14,185.09,185.01,0.03790381]
[1755565310047,2.99,185.02,185.01,0.03790381]
[1755565310944,2.99,185.02,184.93,2.91]
[1755565319351,2.99,185.02,184.93,8.3148]
[1755565319747,0.03979961,185.03,184.93,8.3148]
[1755565320058,2.94979961,185.03,184.93,8.3148]
[1755565320355,2.94979961,185.03,184.93,2.91]
[1755565321154,2.94979961,185.03,184.9,4.87012496]
[1755565321457,2.94979961,185.03,184.89,8.4458]
[1755565321655,2.91,185.03,184.89,8.4458]
[1755565321955,0.03419067,184.98,184.89,8.4458]
[1755565322155,0.03419067,184.98,184.9,8.4457]
[1755565322461,0.03419067,184.98,184.9,3.04]
[1755565323558,0.03419067,184.98,184.9,8.4457]
[1755565324756,0.03419067,184.98,184.92,3.04]
[1755565324951,0.03419067,184.98,184.92,7.91012496]
[1755565325161,0.03419067,184.98,184.93,3.04]
[1755565325347,0.03419067,184.98,184.93,5.4046]
[1755565325551,0.03419067,184.98,184.93,3.04]
[1755565325855,142.06,185.06,184.98,5.4031]
[1755565327051,142.06,185.06,185.0,0.03743109]
[1755565327458,142.06,185.06,185.01,3.04]
[1755565327757,363.14,185.09,185.0,0.03743109]
[1755565327959,2.91,185.04,185.0,0.03743109]
[1755565328354,2.91,185.08,185.0,0.03743109]
[1755565329856,2.91,185.08,185.0,5.44003109]
[1755565330254,2.91,185.08,185.0,0.03743109]
[1755565332557,2.91,185.08,185.01,3.04]
[1755565333765,2.91,185.08,185.0,0.03743109]
[1755565335369,363.14,185.09,184.86,12.14099887]